bitfinex/quotes_BTCUSD_20251116
["timestamp","ask_amount","ask_price","bid_price","bid_amount"]
[1763300950071,0.20996343,95255.0,95253.0,0.00113558]
[1763300950272,0.2099458,95263.0,95253.0,0.00113558]
[1763300950482,0.03154343,95278.0,95253.0,0.00213558]
[1763300950739,0.323,95277.0,95265.0,0.00018]
[1763300950944,0.20991865,95275.0,95265.0,0.00018]
[1763300951156,0.02248538,95280.0,95265.0,0.00018]
[1763300951365,0.01199,95280.0,95265.0,0.21011848]
[1763300951577,0.01192,95287.0,95277.0,0.20991303]
[1763300951799,0.01192,95292.0,95284.0,0.20989787]
[1763300952017,0.01192,95292.0,95266.0,0.00018]
[1763300952242,0.20989606,95286.0,95266.0,0.00018]
[1763300952515,0.03153239,95310.0,95270.0,0.01049648]
[1763300952723,0.01192,95311.0,95295.0,0.00018]
[1763300952956,0.10402093,95308.0,95271.0,0.10420093]
[1763300953179,0.20986494,95300.0,95288.0,0.20988857]
[1763300953384,0.20985037,95306.0,95295.0,0.20987379]
[1763300953549,0.10402093,95308.0,95291.0,0.20988205]
[1763300953770,0.10402093,95308.0,95279.0,0.2099091]
[1763300954148,0.20985447,95305.0,95296.0,0.20987023]
[1763300954603,0.323,95306.0,95299.0,0.20986579]
[1763300954825,0.10402093,95308.0,95303.0,0.20985624]
[1763300955037,0.2098577,95303.0,95292.0,0.20987944]
[1763300955213,0.2098577,95303.0,95294.0,0.20987615]
[1763300955420,0.20984817,95307.0,95298.0,0.20986684]
[1763300955662,0.10602093,95308.0,95277.0,0.20991262]
[1763300955887,0.02803,95295.0,95276.0,0.00025]
[1763300956122,0.01049428,95290.0,95269.0,0.00025]
[1763300956335,0.20989698,95285.0,95277.0,0.20991329]
[1763300956568,0.002,95308.0,95274.0,0.20992028]
[1763300956806,0.002,95308.0,95272.0,0.10402093]
[1763300956807,0.002,95308.0,95304.0,0.2098519]
[1763300957016,0.002,95308.0,95292.0,0.00025]
[1763300957220,4.517e-05,95311.0,95290.0,0.00025]
[1763300957434,0.01171,95309.0,95295.0,0.20987303]
[1763300957652,0.01171,95309.0,95306.0,0.20984854]
[1763300957885,4.517e-05,95311.0,95310.0,0.20984156]
[1763300958989,4.517e-05,95311.0,95309.0,0.20984283]
[1763300960353,4.517e-05,95311.0,95310.0,0.00025]
[1763300960559,0.00104517,95311.0,95310.0,0.00025]
[1763300961600,4.517e-05,95311.0,95310.0,0.00025]
[1763300963229,0.00104517,95311.0,95310.0,0.00025]
[1763300966148,4.517e-05,95311.0,95310.0,0.00025]
[1763300966773,0.00104517,95311.0,95310.0,0.00025]
[1763300967379,4.517e-05,95311.0,95310.0,0.00025]
[1763300967578,0.00404517,95311.0,95310.0,0.00025]
[1763300968907,0.00404517,95311.0,95310.0,0.04228415]
[1763300969350,0.00404517,95311.0,95310.0,0.04203415]
[1763300969553,4.517e-05,95311.0,95310.0,0.04203415]
[1763300969875,0.00304517,95311.0,95310.0,0.04203415]
[1763300970291,0.00304517,95311.0,95310.0,0.08545289]
[1763300971784,0.00304517,95311.0,95310.0,0.61829445]
[1763300971934,0.00304517,95311.0,95310.0,0.5973103]
[1763300972603,0.0002,95360.0,95359.0,0.20973374]
[1763300972721,0.01127,95398.0,95369.0,0.20971175]
[1763300972924,0.00065161,95370.0,95369.0,0.20971175]
[1763300973359,0.00065161,95370.0,95369.0,0.25313049]
[1763300974221,0.00065161,95370.0,95353.0,0.20974534]
[1763300974378,0.00065161,95370.0,95369.0,0.002]
[1763300975214,0.00065161,95370.0,95369.0,0.004]
[1763300975419,0.00065161,95370.0,95369.0,0.14943967]
[1763300975626,0.00065161,95370.0,95369.0,0.47043967]
[1763300975831,0.00065161,95370.0,95369.0,0.55229278]
[1763300976149,0.00065161,95370.0,95369.0,0.47443967]
[1763300976575,0.00065161,95370.0,95369.0,0.47043967]
[1763300978711,0.0002,95400.0,95396.0,0.20965115]
[1763300978913,0.00033543,95400.0,95374.0,0.04341874]
[1763300979134,0.00033543,95400.0,95388.0,0.10402093]
[1763300979273,0.00033543,95400.0,95397.0,0.20964908]
[1763300979959,0.00033543,95400.0,95397.0,0.20965019]
[1763300980790,0.00033543,95400.0,95399.0,0.2096458]
[1763300981410,0.00033543,95400.0,95399.0,0.25306454]
[1763300982247,0.009,95412.0,95409.0,0.20962383]
[1763300982861,0.009,95412.0,95402.0,0.36641874]
[1763300983039,0.009,95412.0,95407.0,0.20962716]
[1763300983245,0.009,95412.0,95401.0,0.20964073]
[1763300983410,0.009,95412.0,95403.0,0.10402093]
[1763300983589,0.009,95412.0,95405.0,0.20963103]
[1763300983802,0.009,95412.0,95407.0,0.20962664]
[1763300983997,0.009,95412.0,95411.0,0.20961943]
[1763300984299,0.009,95412.0,95408.0,0.20962602]
[1763300984507,0.009,95412.0,95406.0,0.20962926]
[1763300984702,0.009,95412.0,95404.0,0.20963481]
[1763300984939,0.009,95412.0,95407.0,0.20962822]
[1763300985136,0.009,95412.0,95405.0,0.20963261]
[1763300985527,0.009,95412.0,95403.0,0.10402093]
[1763300985969,0.009,95412.0,95410.0,0.20962149]
[1763300986171,0.009,95412.0,95403.0,0.10402093]
[1763300986377,0.009,95412.0,95403.0,0.31365727]
[1763300986583,0.009,95412.0,95405.0,0.20963197]
[1763300986960,0.009,95412.0,95410.0,0.20962094]
[1763300991121,0.009,95412.0,95411.0,0.02096194]
[1763300991754,0.0002,95430.0,95411.0,0.02096194]
[1763300991957,0.0002,95430.0,95403.0,0.10402093]
[1763300991958,0.20958868,95425.0,95404.0,0.04341874]
[1763300992158,0.20959524,95423.0,95404.0,0.04341874]
[1763300992362,0.00033538,95430.0,95425.0,0.20958672]
[1763300992564,0.00033538,95430.0,95426.0,0.20958631]
[1763300992776,0.00033538,95430.0,95420.0,0.20959916]
[1763300993036,0.00033538,95430.0,95404.0,0.25305355]
[1763300993358,0.00033538,95430.0,95428.0,0.20958185]
[1763300993564,0.00033538,95430.0,95426.0,0.20958464]
[1763300993763,0.00033538,95430.0,95428.0,0.20958062]
[1763300994668,0.00033538,95430.0,95426.0,0.20958464]
[1763300995092,0.01047778,95440.0,95428.0,0.2095816]
[1763300995286,0.01047778,95440.0,95424.0,0.20959009]
[1763300995287,0.20956445,95437.0,95424.0,0.20959009]
[1763300995485,0.20955793,95439.0,95426.0,0.001]
[1763300995689,0.20958296,95428.0,95426.0,0.00113538]
[1763300995927,0.20958296,95428.0,95426.0,0.00013538]
[1763300996889,0.20958296,95428.0,95426.0,0.00213538]
[1763300997087,0.20958296,95428.0,95426.0,0.00313538]
[1763301002931,0.01188,95427.0,95426.0,0.00313538]
[1763301003148,0.04687584,95427.0,95426.0,0.00313538]
[1763301003583,0.36987584,95427.0,95426.0,0.00313538]
[1763301003836,0.36987584,95427.0,95426.0,0.00013538]
[1763301005155,0.37315672,95427.0,95426.0,0.00313538]
[1763301005560,0.37315672,95427.0,95426.0,0.00013538]
[1763301005999,0.37315672,95427.0,95426.0,0.00113538]
[1763301006401,0.37315672,95427.0,95426.0,0.00213538]
[1763301006614,0.37315672,95427.0,95426.0,0.00013538]
[1763301006816,0.37315672,95427.0,95426.0,0.00113538]
[1763301007024,0.37318879,95427.0,95426.0,0.00113538]
[1763301007417,0.36990791,95427.0,95426.0,0.00113538]
[1763301007838,0.01946791,95427.0,95426.0,0.00113538]
[1763301008242,0.01946791,95427.0,95426.0,0.00013538]
[1763301008449,0.01946791,95427.0,95426.0,0.00113538]
[1763301008664,0.01946791,95427.0,95426.0,0.00213538]
[1763301009092,0.34246791,95427.0,95426.0,0.00213538]
[1763301009309,0.35802791,95427.0,95426.0,0.00213538]
[1763301010386,0.36130858,95427.0,95426.0,0.00213538]
[1763301010789,0.3613086,95427.0,95426.0,0.00213538]
[1763301014163,0.3613086,95427.0,95426.0,0.00113538]
[1763301014379,0.3613086,95427.0,95426.0,0.00013538]
[1763301014550,0.3613086,95427.0,95426.0,0.00113538]
[1763301015255,0.3613086,95427.0,95393.0,0.07535774]
[1763301015468,0.20965679,95394.0,95391.0,0.07535774]
[1763301015673,0.20966118,95392.0,95391.0,0.00013543]
[1763301017347,0.20964743,95399.0,95391.0,0.00013543]
[1763301017552,0.01153,95415.0,95391.0,0.00013543]
[1763301017553,0.20965221,95397.0,95391.0,0.00013543]
[1763301017749,0.20965503,95395.0,95391.0,0.00013543]
[1763301018152,0.20965927,95393.0,95391.0,0.00013543]
[1763301019763,0.20965679,95394.0,95391.0,0.00013543]
[1763301020409,0.20965927,95393.0,95391.0,0.00013543]
[1763301022923,0.33453,95419.0,95391.0,0.00013543]
[1763301023134,0.20966118,95392.0,95391.0,0.00213543]
[1763301023266,0.01153,95411.0,95391.0,0.00213543]
[1763301023467,0.01153,95419.0,95391.0,0.00213543]
[1763301023712,0.01153,95419.0,95396.0,0.20965113]
[1763301023915,0.33347998,95420.0,95391.0,0.00213543]
[1763301024115,0.20964545,95400.0,95391.0,0.02510176]
[1763301024323,0.20963651,95404.0,95396.0,0.20965023]
[1763301024525,0.20962588,95409.0,95398.0,0.20964768]
[1763301024732,0.01047998,95420.0,95398.0,0.04341874]
[1763301024940,0.10402093,95441.0,95413.0,0.2096148]
[1763301024941,0.20959963,95421.0,95413.0,0.2096148]
[1763301025353,0.20958925,95425.0,95413.0,0.2096148]
[1763301025576,0.20958063,95429.0,95421.0,0.20959539]
[1763301026201,0.20957631,95431.0,95423.0,0.20959248]
[1763301026407,0.20957989,95429.0,95421.0,0.20959539]
[1763301026640,0.22003571,95440.0,95416.0,0.20960657]
[1763301026857,0.0001353,95429.0,95410.0,0.04341874]
[1763301027400,0.20959158,95424.0,95416.0,0.20960822]
[1763301027746,0.20959245,95424.0,95416.0,0.20960822]
[1763301027966,0.20959245,95424.0,95418.0,0.20960379]
[1763301028167,0.20959245,95424.0,95416.0,0.20960822]
[1763301028371,0.0001353,95429.0,95421.0,0.10402093]
[1763301028607,0.2095943,95423.0,95409.0,0.04341874]
[1763301028811,0.20960097,95420.0,95414.0,0.20961262]
[1763301029004,0.20959527,95422.0,95414.0,0.20961262]
[1763301029165,0.20959527,95422.0,95416.0,0.20960824]
[1763301029378,10.0,95424.0,95418.0,0.20960383]
[1763301029570,10.0,95424.0,95416.0,0.20960824]
[1763301029801,0.20959763,95421.0,95414.0,0.07535774]
[1763301030068,0.20960028,95420.0,95414.0,0.07535774]
[1763301030263,0.20960874,95416.0,95413.0,0.07535774]
[1763301030464,10.0,95424.0,95380.0,0.02048436]
[1763301030465,10.0,95424.0,95409.0,0.04341874]
[1763301030745,0.20962096,95411.0,95408.0,0.07535774]
[1763301030873,0.20962096,95411.0,95407.0,0.04341874]
[1763301031073,0.20962433,95409.0,95407.0,0.04341874]
[1763301031511,0.2096216,95411.0,95405.0,0.04341874]
[1763301031665,10.0,95424.0,95405.0,0.04341874]
[1763301031882,0.20962858,95407.0,95405.0,0.04341874]
[1763301032077,0.20962903,95407.0,95404.0,0.07535774]
[1763301032279,0.20962903,95407.0,95403.0,0.07535774]
[1763301032582,0.20962501,95409.0,95403.0,0.07535774]
[1763301032781,0.20962244,95410.0,95403.0,0.07535774]
[1763301033024,0.20962244,95410.0,95404.0,0.20963481]
[1763301033222,10.0,95424.0,95405.0,0.02096326]
[1763301033420,0.20959892,95421.0,95413.0,0.20961302]
[1763301033602,0.20959307,95423.0,95415.0,0.20960956]
[1763301033804,0.20959821,95421.0,95414.0,0.20961284]
[1763301034006,0.20960246,95419.0,95410.0,0.28497803]
[1763301034218,0.209607,95417.0,95410.0,0.07535774]
[1763301034417,0.20961207,95415.0,95409.0,0.07535774]
[1763301034875,0.20961207,95415.0,95409.0,0.09632012]
[1763301035000,0.20961207,95415.0,95410.0,0.02096216]
[1763301035206,0.001,95419.0,95410.0,0.23058348]
[1763301035421,0.20960405,95418.0,95411.0,0.02096194]
[1763301035761,0.001,95415.0,95411.0,0.02096194]
[1763301036036,0.001,95415.0,95412.0,0.20961723]
[1763301036462,0.001,95415.0,95409.0,0.20962365]
[1763301036589,0.001,95415.0,95410.0,0.02096216]
[1763301037019,0.20960899,95416.0,95410.0,0.2305816]
[1763301037217,0.20960405,95418.0,95412.0,0.20961699]
[1763301037615,0.20960405,95418.0,95414.0,0.20961273]
[1763301037849,0.001,95419.0,95414.0,0.20961273]
[1763301038058,0.20959307,95423.0,95416.0,0.20960838]
[1763301038558,10.0,95424.0,95410.0,0.20961944]
[1763301038774,0.20960495,95418.0,95414.0,0.20961209]
[1763301038906,0.20959958,95421.0,95414.0,0.21261249]
[1763301039761,0.20960298,95419.0,95414.0,0.003]
[1763301040054,0.20959307,95423.0,95418.0,0.20960389]
[1763301040259,10.0,95424.0,95422.0,0.20959315]
[1763301041370,10.0,95424.0,95423.0,0.04341874]
[1763301042451,10.001,95424.0,95423.0,0.04341874]
[1763301043222,10.001,95424.0,95421.0,0.2095964]
[1763301043667,10.21059087,95424.0,95423.0,0.002]
[1763301043982,10.0,95424.0,95423.0,0.002]
[1763301044159,10.0,95424.0,95423.0,0.21259307]
[1763301044359,10.0,95424.0,95423.0,0.20959307]
[1763301044784,10.001,95424.0,95423.0,0.20959307]
[1763301045158,10.0,95424.0,95421.0,0.20959543]
[1763301045359,10.0,95424.0,95423.0,0.21159307]
[1763301045544,10.0,95424.0,95423.0,0.005]
[1763301046888,10.0,95424.0,95423.0,0.003]
[1763301048485,10.0,95424.0,95423.0,0.005]
[1763301048706,10.0,95424.0,95423.0,0.04841874]
[1763301048909,10.0,95424.0,95423.0,0.12377648]
[1763301049042,10.0,95424.0,95423.0,0.04841874]
[1763301052045,9.98294734,95424.0,95423.0,0.37141874]
[1763301052250,9.84128405,95424.0,95423.0,0.37141874]
[1763301052484,9.83171405,95424.0,95423.0,0.37141874]
[1763301053036,9.83171405,95424.0,95423.0,0.36941874]
[1763301053233,9.83171405,95424.0,95423.0,0.36641874]
[1763301053415,9.83171405,95424.0,95423.0,0.38746874]
[1763301054218,9.83171405,95424.0,95423.0,0.4817893]
[1763301055333,9.83171405,95424.0,95423.0,0.38746874]
[1763301057788,9.72602577,95424.0,95423.0,0.38746874]
[1763301058004,9.57086665,95424.0,95423.0,0.38746874]
[1763301058209,9.39941148,95424.0,95423.0,0.38746874]
[1763301058403,9.22017482,95424.0,95423.0,0.36645874]
[1763301058607,9.15555455,95424.0,95423.0,0.38750874]
[1763301058994,9.14502184,95424.0,95423.0,0.46690791]
[1763301059536,8.6451515,95424.0,95423.0,0.46690791]
[1763301059746,8.36826383,95424.0,95423.0,0.46690791]
[1763301059970,8.27276754,95424.0,95423.0,0.46690791]
[1763301061133,7.46847008,95424.0,95423.0,0.46690791]
[1763301061343,7.35129509,95424.0,95423.0,0.46690791]
[1763301061579,6.46819087,95424.0,95423.0,0.58760791]
[1763301061782,6.43672104,95424.0,95423.0,0.58760791]
[1763301061927,6.20679046,95424.0,95423.0,0.58760791]
[1763301062134,5.92931208,95424.0,95423.0,0.58760791]
[1763301062344,5.5689022,95424.0,95423.0,0.58760791]
[1763301062543,5.27607246,95424.0,95423.0,0.58760791]
[1763301062749,5.04027459,95424.0,95423.0,0.58760791]
[1763301063015,5.00881143,95424.0,95423.0,0.6814918]
[1763301063187,4.97734827,95424.0,95423.0,0.68144822]
[1763301063528,4.97734827,95424.0,95423.0,0.82744822]
[1763301063529,4.79988511,95424.0,95423.0,0.82744822]
[1763301063727,4.76842195,95424.0,95423.0,0.73360791]
[1763301063931,4.73695879,95424.0,95423.0,0.73360791]
[1763301064066,4.70549563,95424.0,95423.0,0.73360791]
[1763301064285,3.91706567,95424.0,95423.0,0.73360791]
[1763301064464,3.47108919,95424.0,95423.0,0.73360791]
[1763301064671,3.42187817,95424.0,95423.0,0.73360791]
[1763301064877,3.39041501,95424.0,95423.0,0.73360791]
[1763301065071,3.35895185,95424.0,95423.0,0.73360791]
[1763301065316,3.32748869,95424.0,95423.0,0.73360791]
[1763301065533,2.77797998,95424.0,95423.0,0.73360791]
[1763301065693,2.51814903,95424.0,95423.0,0.73360791]
[1763301066081,2.02008182,95424.0,95423.0,0.58760791]
[1763301066302,1.70195521,95424.0,95423.0,1.05192907]
[1763301066510,1.67049254,95424.0,95423.0,0.99775199]
[1763301066654,1.22910728,95424.0,95423.0,1.40775199]
[1763301066878,1.07016528,95424.0,95423.0,1.40775199]
[1763301067078,0.98697988,95424.0,95423.0,1.40775199]
[1763301067280,0.95551721,95424.0,95423.0,1.40775199]
[1763301067491,0.95551721,95424.0,95423.0,1.37030791]
[1763301067695,0.95551721,95424.0,95423.0,0.98030791]
[1763301068110,0.95551721,95424.0,95423.0,0.93688917]
[1763301068639,0.95551721,95424.0,95423.0,0.61816502]
[1763301068785,0.95551721,95424.0,95423.0,0.52449]
[1763301068989,0.95551721,95424.0,95423.0,0.84749]
[1763301069466,0.95551721,95424.0,95423.0,0.49820874]
[1763301070093,0.95551721,95424.0,95423.0,0.50820874]
[1763301070306,0.95551721,95424.0,95423.0,0.49820874]
[1763301070702,0.95551721,95424.0,95423.0,0.50820874]
[1763301071317,0.95551721,95424.0,95423.0,0.60188376]
[1763301071875,0.95551721,95424.0,95423.0,0.50820874]
[1763301072330,0.8139096,95424.0,95423.0,0.60191972]
[1763301072533,0.8139096,95424.0,95423.0,0.50820874]
[1763301072750,0.8139096,95424.0,95423.0,0.49820874]
[1763301073493,0.7928696,95424.0,95423.0,0.49820874]
[1763301075403,0.6468696,95424.0,95423.0,0.06450874]
[1763301075882,0.6468696,95424.0,95423.0,0.34409]
[1763301076078,0.6468696,95424.0,95423.0,0.02109]
[1763301076292,0.6468696,95424.0,95423.0,0.09613707]
[1763301076509,0.6468696,95424.0,95423.0,0.34409]
[1763301076717,0.6468696,95424.0,95423.0,0.02109]
[1763301076932,0.6468696,95424.0,95423.0,0.38750874]
[1763301077141,0.6468696,95424.0,95423.0,0.34409]
[1763301077555,0.6468696,95424.0,95423.0,0.38750874]
[1763301078543,0.6478696,95424.0,95423.0,0.38750874]
[1763301078744,0.6478696,95424.0,95423.0,0.06450874]
[1763301078946,0.6478696,95424.0,95423.0,0.38750874]
[1763301079127,0.6498696,95424.0,95423.0,0.38750874]
[1763301079569,0.6478696,95424.0,95423.0,0.38750874]
[1763301079982,0.6488696,95424.0,95423.0,0.38750874]
[1763301081240,0.6508696,95424.0,95423.0,0.38750874]
[1763301081858,0.6508696,95424.0,95423.0,0.48121972]
[1763301082062,0.6468696,95424.0,95423.0,0.38750874]
[1763301082427,0.5072401,95424.0,95423.0,0.42969874]
[1763301082652,0.5082401,95424.0,95423.0,0.39750874]
[1763301082862,0.49119299,95424.0,95423.0,0.42969874]
[1763301083028,0.49119299,95424.0,95423.0,0.39750874]
[1763301083425,0.49119299,95424.0,95423.0,0.38750874]
[1763301084018,0.49119299,95424.0,95423.0,0.53350874]
[1763301085921,0.49119299,95424.0,95423.0,0.56497594]
[1763301089506,0.49119299,95424.0,95423.0,0.67567594]
[1763301092328,0.26904113,95424.0,95423.0,0.67567594]
[1763301092810,0.26904113,95424.0,95423.0,0.53350874]
[1763301093720,0.26704113,95424.0,95423.0,0.53350874]
[1763301094054,0.26904113,95424.0,95423.0,0.53350874]
[1763301094683,0.26804113,95424.0,95423.0,0.53350874]
[1763301095097,0.27104113,95424.0,95423.0,0.53350874]
[1763301099118,0.26804113,95424.0,95423.0,0.53350874]
[1763301099357,0.27004113,95424.0,95423.0,0.53350874]
[1763301099792,0.26804113,95424.0,95423.0,0.53350874]
[1763301100643,0.27004113,95424.0,95423.0,0.53350874]
[1763301101744,0.27004113,95424.0,95423.0,0.38750874]
[1763301102334,0.24617058,95424.0,95423.0,0.41723874]
[1763301102539,0.24617058,95424.0,95423.0,0.38750874]
[1763301103323,0.24617058,95424.0,95423.0,0.36645874]
[1763301110963,0.06804569,95424.0,95423.0,0.36645874]
[1763301112114,0.06604569,95424.0,95423.0,0.36645874]
[1763301112525,0.06704569,95424.0,95423.0,0.36645874]
[1763301112759,0.06904569,95424.0,95423.0,0.36645874]
[1763301113872,0.06904569,95424.0,95423.0,0.25305181]
[1763301118468,0.06904569,95424.0,95423.0,0.27410181]
[1763301118899,0.06904569,95424.0,95423.0,0.25305181]
[1763301121012,0.04517421,95424.0,95423.0,0.25305181]
[1763301122466,0.04517421,95424.0,95423.0,0.57605181]
[1763301122690,0.04517421,95424.0,95423.0,0.32304]
[1763301123541,0.04517421,95424.0,95423.0,4e-05]
[1763301123726,0.04217421,95424.0,95423.0,4e-05]
[1763301124146,0.04317421,95424.0,95423.0,4e-05]
[1763301124517,0.04617421,95424.0,95423.0,4e-05]
[1763301127167,0.25576508,95424.0,95423.0,4e-05]
[1763301127385,0.04617421,95424.0,95423.0,4e-05]
[1763301128026,0.04317421,95424.0,95423.0,4e-05]
[1763301128319,0.04317421,95424.0,95423.0,0.00204]
[1763301128525,0.25276508,95424.0,95423.0,0.00204]
[1763301128969,0.24976508,95424.0,95423.0,0.00204]
[1763301129582,0.24976508,95424.0,95423.0,4e-05]
[1763301129931,0.24976508,95424.0,95423.0,0.00204]
[1763301130326,0.24976508,95424.0,95423.0,4e-05]
[1763301130682,0.24976508,95424.0,95423.0,0.00204]
[1763301133082,0.28043508,95424.0,95423.0,0.00204]
[1763301134102,0.60343508,95424.0,95423.0,4e-05]
[1763301134507,0.2096414,95401.0,95400.0,4e-05]
[1763301136013,0.60646014,95401.0,95400.0,4e-05]
[1763301136259,0.20973594,95358.0,95357.0,0.00934]
[1763301136467,0.01048327,95390.0,95357.0,0.00934]
[1763301136468,0.20973295,95360.0,95357.0,0.00934]
[1763301136695,0.01048437,95380.0,95350.0,4e-05]
[1763301136696,0.20975133,95351.0,95350.0,4e-05]
[1763301137544,0.20975133,95351.0,95350.0,0.00049161]
[1763301137759,0.0304,95358.0,95350.0,0.00049161]
[1763301137760,0.0218,95368.0,95350.0,0.00049161]
[1763301137987,0.20973059,95361.0,95350.0,0.00049161]
[1763301138194,0.20973044,95361.0,95350.0,0.00049161]
[1763301138398,0.20973582,95359.0,95350.0,0.00049161]
[1763301138807,0.20972333,95364.0,95358.0,0.03835]
[1763301139007,0.2097192,95366.0,95359.0,0.02897]
[1763301139243,0.0218,95376.0,95359.0,0.02897]
[1763301139408,0.20973051,95361.0,95359.0,0.02897]
[1763301139681,0.2097214,95365.0,95359.0,0.02897]
[1763301139988,0.20972718,95362.0,95359.0,0.02897]
[1763301140150,0.20972623,95363.0,95359.0,0.02897]
[1763301140991,0.20973117,95361.0,95359.0,0.03097]
[1763301141815,0.0218,95376.0,95359.0,0.03097]
[1763301141816,0.03228437,95380.0,95368.0,0.02897]
[1763301142030,0.20969635,95376.0,95373.0,0.02897]
[1763301143345,0.20969635,95376.0,95373.0,0.03097]
[1763301145220,0.20969635,95376.0,95373.0,0.002]
[1763301145655,0.26190075,95374.0,95373.0,0.002]
[1763301146446,0.26190075,95374.0,95358.0,0.00938]
[1763301146447,0.20973374,95359.0,95358.0,0.00938]
[1763301147047,0.20975133,95351.0,95350.0,0.00049161]
[1763301148819,0.20975133,95351.0,95350.0,0.00149161]
[1763301149239,0.20975133,95351.0,95350.0,0.00349161]
[1763301149649,0.20975133,95351.0,95350.0,0.00249161]
[1763301150191,0.20975133,95351.0,95350.0,0.00149161]
[1763301150812,0.20975133,95351.0,95350.0,0.00349161]
[1763301151382,0.20975133,95351.0,95350.0,0.00249161]
[1763301151564,0.20975133,95351.0,95350.0,0.00349161]
[1763301152166,0.20975133,95351.0,95350.0,0.00149161]
[1763301152623,0.20975133,95351.0,95350.0,0.00349161]
[1763301153066,0.02147,95383.0,95359.0,0.03773]
[1763301153264,0.20970969,95370.0,95364.0,0.02835]
[1763301153464,0.20971479,95368.0,95364.0,0.02835]
[1763301153667,0.20971479,95368.0,95365.0,0.03969]
[1763301153981,0.20970663,95372.0,95367.0,0.02835]
[1763301154182,0.20968976,95381.0,95365.0,0.03969]
[1763301154400,0.22017329,95380.0,95379.0,0.02835]
[1763301154617,0.04341874,95409.0,95379.0,0.02835]
[1763301154618,0.03150133,95401.0,95379.0,0.02835]
[1763301154834,0.20966663,95390.0,95388.0,0.02835]
[1763301155493,0.20968333,95382.0,95380.0,0.03969]
[1763301156324,0.20967114,95388.0,95380.0,0.03969]
[1763301156466,0.20966778,95389.0,95380.0,0.03969]
[1763301156665,0.20968404,95382.0,95380.0,0.03969]
[1763301156908,0.20969391,95378.0,95374.0,0.01515]
[1763301157311,0.20969391,95378.0,95374.0,0.05484]
[1763301158309,0.21269391,95378.0,95374.0,0.05484]
[1763301158545,0.20969828,95376.0,95374.0,0.01515]
[1763301158708,0.21569391,95378.0,95374.0,0.01515]
[1763301159106,0.209697,95376.0,95374.0,0.01515]
[1763301159428,0.21269391,95378.0,95374.0,0.01515]
[1763301159628,0.003,95376.0,95375.0,0.03969]
[1763301161350,0.003,95376.0,95375.0,0.11444893]
[1763301161580,0.003,95376.0,95375.0,0.40610874]
[1763301161780,0.003,95378.0,95377.0,0.323]
[1763301162007,0.003,95378.0,95377.0,0.5761129]
[1763301162226,0.00012284,95390.0,95389.0,0.20966778]
[1763301162401,0.00012284,95390.0,95389.0,0.23801778]
[1763301162583,0.00012284,95390.0,95389.0,0.20966778]
[1763301162780,0.00012284,95390.0,95385.0,0.20967657]
[1763301162983,0.00012284,95390.0,95382.0,0.07513505]
[1763301163174,0.00012284,95390.0,95389.0,0.0435]
[1763301163373,0.00312284,95390.0,95389.0,0.01515]
[1763301164608,0.00012284,95390.0,95389.0,0.01515]
[1763301164809,0.00312284,95390.0,95389.0,0.01515]
[1763301165013,0.00612284,95390.0,95389.0,0.01515]
[1763301165596,0.00312284,95390.0,95389.0,0.01515]
[1763301166179,0.00612284,95390.0,95389.0,0.01515]
[1763301167384,0.00612284,95390.0,95389.0,0.05484]
[1763301168596,0.00612284,95390.0,95389.0,0.01515]
[1763301169828,0.00612284,95390.0,95389.0,0.05484]
[1763301170201,0.00612284,95390.0,95389.0,0.01515]
[1763301174147,0.00612284,95390.0,95389.0,0.05484]
[1763301175313,0.00612284,95390.0,95389.0,0.01515]
[1763301175878,0.00612284,95390.0,95389.0,0.03611677]
[1763301176594,0.00612284,95390.0,95389.0,0.01515]
[1763301177204,0.00312284,95390.0,95389.0,0.01515]
[1763301177579,0.00012284,95390.0,95389.0,0.22481778]
[1763301177787,0.00312284,95390.0,95389.0,0.22481778]
[1763301178008,0.00612284,95390.0,95389.0,0.22481778]
[1763301178205,0.00312284,95390.0,95389.0,0.22481778]
[1763301178413,0.00312284,95390.0,95389.0,0.24586778]
[1763301178615,0.00612284,95390.0,95389.0,0.24586778]
[1763301178817,0.00612284,95390.0,95389.0,0.22481778]
[1763301179073,0.00612284,95390.0,95389.0,0.24582778]
[1763301179424,0.00612284,95390.0,95389.0,0.03616]
[1763301179655,0.00612284,95390.0,95389.0,0.13226182]
[1763301179858,0.00612284,95390.0,95389.0,0.05712677]
[1763301180030,0.00312284,95390.0,95389.0,0.05712677]
[1763301180230,0.00312284,95390.0,95389.0,0.03616]
[1763301180432,0.00012284,95390.0,95389.0,0.03616]
[1763301180722,0.21178842,95390.0,95389.0,0.03616]
[1763301180931,0.21378842,95390.0,95389.0,0.03616]
[1763301181458,0.21178842,95390.0,95389.0,0.03616]
[1763301181831,0.21378842,95390.0,95389.0,0.03616]
[1763301183143,0.21378842,95390.0,95389.0,0.01515]
[1763301183380,0.21178842,95390.0,95389.0,0.01515]
[1763301183712,0.21378842,95390.0,95389.0,0.01515]
[1763301184919,0.20978842,95390.0,95389.0,0.01515]
[1763301185336,0.21478842,95390.0,95389.0,0.01515]
[1763301188405,0.00512284,95390.0,95389.0,0.03616]
[1763301188963,0.00512284,95390.0,95389.0,0.24582778]
[1763301189368,0.00063724,95390.0,95389.0,0.27225778]
[1763301189574,0.00063724,95390.0,95389.0,0.24582778]
[1763301189958,0.00015739,95390.0,95389.0,0.27225778]
[1763301190161,0.04017421,95424.0,95389.0,0.27225778]
[1763301190162,0.20960845,95416.0,95398.0,0.02643]
[1763301190555,0.0002,95450.0,95423.0,0.06691]
[1763301190756,0.00036936,95442.0,95439.0,0.2095567]
[1763301191184,0.00036936,95442.0,95441.0,0.53255354]
[1763301191763,0.00036936,95442.0,95441.0,0.55356354]
[1763301192306,0.00336936,95442.0,95441.0,0.55356354]
[1763301193463,0.00336936,95442.0,95441.0,0.53255354]
[1763301193676,0.00036936,95442.0,95441.0,0.53255354]
[1763301193848,0.00436936,95442.0,95441.0,0.53255354]
[1763301194260,0.00236936,95442.0,95441.0,0.53255354]
[1763301194459,0.00136936,95442.0,95441.0,0.60753279]
[1763301194638,0.00336936,95442.0,95441.0,0.60753279]
[1763301195443,0.00336936,95442.0,95441.0,0.53255354]
[1763301195653,0.00336936,95442.0,95441.0,0.60753279]
[1763301196457,0.00336936,95442.0,95441.0,0.53255354]
[1763301197043,0.00236936,95442.0,95441.0,0.53255354]
[1763301197252,0.00136936,95442.0,95441.0,0.53255354]
[1763301197840,0.00236936,95442.0,95441.0,0.53255354]
[1763301198441,0.00136936,95442.0,95441.0,0.323]
[1763301198681,0.00336936,95442.0,95441.0,0.323]
[1763301198855,0.00336936,95442.0,95441.0,0.53255354]
[1763301199064,0.00336936,95442.0,95441.0,0.323]
[1763301199985,0.00336936,95442.0,95427.0,0.20958221]
[1763301199986,0.00336936,95442.0,95439.0,0.2095571]